[Event "*** Titled Tuesday Blitz"]
[Site "Chess.com"]
[Date "2020.05.05"]
[Round "8"]
[White "ntmh281"]
[Black "erlesfar"]
[Result "1-0"]
[WhiteElo "2297"]
[BlackElo "2429"]
[TimeControl "180+1"]
[EndTime "11:34:53 PDT"]
[Termination "ntmh281 won by checkmate"]

1. d4 {[%clk 0:03:00.9]} 1... Nf6 {[%clk 0:02:59.2]} 2. Nf3 {[%clk 0:03:00.9]}
2... c5 {[%clk 0:02:59]} 3. d5 {[%clk 0:02:58.9]} 3... d6 {[%clk 0:02:57.4]} 4.
Nc3 {[%clk 0:02:57.4]} 4... Qa5 {[%clk 0:02:56.8]} 5. Bd2 {[%clk 0:02:53.5]}
5... b5 {[%clk 0:02:55.8]} 6. Ne4 {[%clk 0:02:45.9]} 6... Qc7 {[%clk 0:02:54.1]}
7. Nxf6+ {[%clk 0:02:45.4]} 7... exf6 {[%clk 0:02:53.7]} 8. e4 {[%clk
0:02:42.6]} 8... a6 {[%clk 0:02:52.3]} 9. a4 {[%clk 0:02:41.1]} 9... b4 {[%clk
0:02:51]} 10. Bd3 {[%clk 0:02:36.2]} 10... g6 {[%clk 0:02:33.4]} 11. O-O {[%clk
0:02:33]} 11... Bg7 {[%clk 0:02:32.4]} 12. Qe2 {[%clk 0:02:17.5]} 12... O-O
{[%clk 0:02:26.4]} 13. Bf4 {[%clk 0:02:04.4]} 13... Nd7 {[%clk 0:02:24.1]} 14.
Nd2 {[%clk 0:02:03.8]} 14... Ne5 {[%clk 0:02:21.8]} 15. Bg3 {[%clk 0:02:00.5]}
15... a5 {[%clk 0:02:19]} 16. Bb5 {[%clk 0:01:57.9]} 16... f5 {[%clk 0:02:15.3]}
17. f4 {[%clk 0:01:21.7]} 17... Ng4 {[%clk 0:02:12]} 18. e5 {[%clk 0:01:22.1]}
18... dxe5 {[%clk 0:02:02.7]} 19. h3 {[%clk 0:01:16.4]} 19... exf4 {[%clk
0:02:02.2]} 20. Bxf4 {[%clk 0:01:09.8]} 20... Be5 {[%clk 0:01:45.7]} 21. Bxe5
{[%clk 0:00:52.7]} 21... Nxe5 {[%clk 0:01:44.9]} 22. Rae1 {[%clk 0:00:51.1]}
22... f6 {[%clk 0:01:39.1]} 23. Nf3 {[%clk 0:00:38.7]} 23... Nxf3+ {[%clk
0:01:33.1]} 24. Rxf3 {[%clk 0:00:39.6]} 24... Bb7 {[%clk 0:01:31.3]} 25. Qe6+
{[%clk 0:00:37]} 25... Qf7 {[%clk 0:01:27.6]} 26. Rd3 {[%clk 0:00:28.6]} 26...
Rad8 {[%clk 0:01:23.1]} 27. d6 {[%clk 0:00:27.5]} 27... Qxe6 {[%clk 0:01:21.1]}
28. Rxe6 {[%clk 0:00:28.4]} 28... Be4 {[%clk 0:01:20.5]} 29. Rd2 {[%clk
0:00:27.2]} 29... h5 {[%clk 0:01:13.9]} 30. d7 {[%clk 0:00:25.3]} 30... Kf7
{[%clk 0:01:08.7]} 31. Bc4 {[%clk 0:00:17]} 31... g5 {[%clk 0:01:05.7]} 32.
Rxe4+ {[%clk 0:00:11]} 32... Kg6 {[%clk 0:01:04.9]} 33. Re7 {[%clk 0:00:10.5]}
33... g4 {[%clk 0:01:03.7]} 34. h4 {[%clk 0:00:10]} 34... f4 {[%clk 0:01:03.8]}
35. Bd3+ {[%clk 0:00:09.7]} 35... f5 {[%clk 0:01:02.5]} 36. Bb5 {[%clk
0:00:08.3]} 36... Kf6 {[%clk 0:01:00.9]} 37. Rde2 {[%clk 0:00:07.4]} 37... f3
{[%clk 0:00:54.2]} 38. R2e6# {[%clk 0:00:07.4]} 1-0

[Event "*** Titled Tuesday Blitz"]
[Site "Chess.com"]
[Date "2020.05.05"]
[Round "8"]
[White "theblitzchamp"]
[Black "Pittiplatsh"]
[Result "1-0"]
[WhiteElo "2688"]
[BlackElo "2526"]
[TimeControl "180+1"]
[EndTime "11:34:57 PDT"]
[Termination "theblitzchamp won by resignation"]

1. d4 {[%clk 0:03:00.9]} 1... Nf6 {[%clk 0:02:59.4]} 2. Bf4 {[%clk 0:03:00.8]}
2... g6 {[%clk 0:02:58.9]} 3. Nc3 {[%clk 0:03:00.2]} 3... d5 {[%clk 0:02:59.1]}
4. e3 {[%clk 0:02:59.8]} 4... Bg7 {[%clk 0:02:59.3]} 5. h4 {[%clk 0:03:00.3]}
5... c6 {[%clk 0:02:59.5]} 6. Nf3 {[%clk 0:02:48.5]} 6... Bg4 {[%clk 0:02:57.6]}
7. Be2 {[%clk 0:02:48.2]} 7... Nbd7 {[%clk 0:02:57.5]} 8. Ne5 {[%clk 0:02:47.6]}
8... Bxe2 {[%clk 0:02:57.3]} 9. Qxe2 {[%clk 0:02:48.2]} 9... Nxe5 {[%clk
0:02:26.8]} 10. Bxe5 {[%clk 0:02:49.1]} 10... h5 {[%clk 0:02:27.4]} 11. O-O-O
{[%clk 0:02:48]} 11... Qa5 {[%clk 0:02:26.5]} 12. Kb1 {[%clk 0:02:47.4]} 12...
O-O-O {[%clk 0:02:24.6]} 13. f3 {[%clk 0:02:41.1]} 13... Rhe8 {[%clk 0:02:18.2]}
14. a3 {[%clk 0:02:24.4]} 14... Bh8 {[%clk 0:02:14.7]} 15. Bh2 {[%clk 0:02:19]}
15... Nd7 {[%clk 0:02:12.2]} 16. e4 {[%clk 0:02:15.1]} 16... e6 {[%clk
0:01:55.7]} 17. Qe3 {[%clk 0:02:09]} 17... Nb6 {[%clk 0:01:46.6]} 18. Qf4 {[%clk
0:01:51.4]} 18... e5 {[%clk 0:01:46.3]} 19. Qxf7 {[%clk 0:01:50.8]} 19... Nc4
{[%clk 0:01:36.6]} 20. exd5 {[%clk 0:01:45.2]} 20... cxd5 {[%clk 0:01:01.9]} 21.
Qxg6 {[%clk 0:01:15.7]} 21... Nxa3+ {[%clk 0:00:45.4]} 22. bxa3 {[%clk
0:01:11.4]} 22... Qxc3 {[%clk 0:00:45.2]} 23. Rd3 {[%clk 0:01:11.3]} 23... Qc6
{[%clk 0:00:40.4]} 24. Qf5+ {[%clk 0:01:04.5]} 24... Rd7 {[%clk 0:00:33.8]} 25.
dxe5 {[%clk 0:01:01.8]} 25... Re6 {[%clk 0:00:28.5]} 26. Rhd1 {[%clk 0:00:56.5]}
26... Qb5+ {[%clk 0:00:19.5]} 27. Rb3 {[%clk 0:00:55.3]} 27... Qc6 {[%clk
0:00:19.7]} 28. Rdd3 {[%clk 0:00:49.6]} 28... d4 {[%clk 0:00:16.5]} 29. Qxh5
{[%clk 0:00:45.2]} 29... Bg7 {[%clk 0:00:16.4]} 30. Qf5 {[%clk 0:00:38.7]} 30...
Rc7 {[%clk 0:00:16.1]} 31. Rxd4 {[%clk 0:00:35.1]} 1-0

[Event "*** Titled Tuesday Blitz"]
[Site "Chess.com"]
[Date "2020.05.05"]
[Round "8"]
[White "etesungam"]
[Black "chenxiaoyuer"]
[Result "0-1"]
[WhiteElo "2301"]
[BlackElo "2226"]
[TimeControl "180+1"]
[EndTime "11:34:57 PDT"]
[Termination "chenxiaoyuer won by checkmate"]

1. d4 {[%clk 0:02:40.7]} 1... Nf6 {[%clk 0:02:58.8]} 2. Nc3 {[%clk 0:02:41.6]}
2... d5 {[%clk 0:02:58.1]} 3. Bg5 {[%clk 0:02:40.6]} 3... g6 {[%clk 0:02:55.9]}
4. Bxf6 {[%clk 0:02:40.2]} 4... exf6 {[%clk 0:02:55.2]} 5. e3 {[%clk 0:02:40.6]}
5... Bg7 {[%clk 0:02:54.5]} 6. Bd3 {[%clk 0:02:41.5]} 6... f5 {[%clk 0:02:53.3]}
7. Nge2 {[%clk 0:02:42.4]} 7... O-O {[%clk 0:02:52.4]} 8. Qd2 {[%clk 0:02:42.2]}
8... c6 {[%clk 0:02:40.9]} 9. Nf4 {[%clk 0:02:41.8]} 9... Nd7 {[%clk 0:02:38.4]}
10. h4 {[%clk 0:02:39.7]} 10... Nf6 {[%clk 0:02:37.8]} 11. h5 {[%clk 0:02:38.4]}
11... g5 {[%clk 0:02:14.7]} 12. Nh3 {[%clk 0:02:37.2]} 12... Ne4 {[%clk
0:02:07]} 13. Bxe4 {[%clk 0:02:31.1]} 13... fxe4 {[%clk 0:02:05.4]} 14. h6
{[%clk 0:02:32]} 14... Bxh6 {[%clk 0:02:00.5]} 15. O-O-O {[%clk 0:02:31.7]}
15... Bg7 {[%clk 0:01:56.2]} 16. f4 {[%clk 0:02:28.6]} 16... f6 {[%clk
0:01:40.6]} 17. g4 {[%clk 0:02:26.5]} 17... Bxg4 {[%clk 0:01:30.1]} 18. Rdg1
{[%clk 0:02:24]} 18... Bf3 {[%clk 0:01:29.3]} 19. Rh2 {[%clk 0:02:20.2]} 19...
h6 {[%clk 0:01:28.3]} 20. fxg5 {[%clk 0:02:19.6]} 20... fxg5 {[%clk 0:01:25.4]}
21. Nf2 {[%clk 0:02:15.5]} 21... Qd6 {[%clk 0:01:23]} 22. Ng4 {[%clk 0:02:04.7]}
22... Bxg4 {[%clk 0:01:16.1]} 23. Rxg4 {[%clk 0:02:05.6]} 23... Rf1+ {[%clk
0:01:15.6]} 24. Nd1 {[%clk 0:02:05]} 24... Raf8 {[%clk 0:01:13.5]} 25. c3 {[%clk
0:02:01.6]} 25... Qe6 {[%clk 0:01:04.4]} 26. Qe2 {[%clk 0:01:56.5]} 26... Qf5
{[%clk 0:00:55.3]} 27. Kc2 {[%clk 0:01:55.4]} 27... Qf3 {[%clk 0:00:52.6]} 28.
Rgg2 {[%clk 0:01:47.7]} 28... Qxe2+ {[%clk 0:00:51.4]} 29. Rxe2 {[%clk
0:01:48.6]} 29... Kh7 {[%clk 0:00:49.7]} 30. Nf2 {[%clk 0:01:48]} 30... Kg6
{[%clk 0:00:47.5]} 31. Nh3 {[%clk 0:01:45.1]} 31... R1f3 {[%clk 0:00:46]} 32. b3
{[%clk 0:01:40.1]} 32... R8f5 {[%clk 0:00:39.3]} 33. c4 {[%clk 0:01:39.8]} 33...
Bf8 {[%clk 0:00:38.4]} 34. Nf2 {[%clk 0:01:36.6]} 34... h5 {[%clk 0:00:32.6]}
35. Nh3 {[%clk 0:01:36.4]} 35... Bd6 {[%clk 0:00:30.3]} 36. Rh1 {[%clk
0:01:36.5]} 36... g4 {[%clk 0:00:27.9]} 37. Rg2 {[%clk 0:01:30.3]} 37... Rg3
{[%clk 0:00:23]} 38. Rxg3 {[%clk 0:01:22.6]} 38... Bxg3 {[%clk 0:00:22.3]} 39.
Ng1 {[%clk 0:01:21.8]} 39... Rf1 {[%clk 0:00:20.6]} 40. c5 {[%clk 0:01:21.4]}
40... Bf2 {[%clk 0:00:19.9]} 41. Rh2 {[%clk 0:01:20.3]} 41... Bxg1 {[%clk
0:00:18.9]} 42. Rh1 {[%clk 0:01:18.6]} 42... Kg5 {[%clk 0:00:19]} 43. b4 {[%clk
0:01:16.7]} 43... h4 {[%clk 0:00:18.9]} 44. b5 {[%clk 0:01:17.1]} 44... h3
{[%clk 0:00:19.1]} 45. b6 {[%clk 0:01:16.9]} 45... a6 {[%clk 0:00:19]} 46. a4
{[%clk 0:01:16.3]} 46... Kh4 {[%clk 0:00:18.9]} 47. Kb3 {[%clk 0:01:16.2]} 47...
g3 {[%clk 0:00:19]} 48. Kb4 {[%clk 0:01:16.3]} 48... g2 {[%clk 0:00:18.6]} 49.
Rh2 {[%clk 0:01:14.1]} 49... Bxh2 {[%clk 0:00:16.5]} 50. Ka5 {[%clk 0:01:15]}
50... g1=Q {[%clk 0:00:16.4]} 51. Kb4 {[%clk 0:01:15.5]} 51... Rb1+ {[%clk
0:00:16.4]} 52. Ka5 {[%clk 0:01:16.4]} 52... Qe1# {[%clk 0:00:16.5]} 0-1

[Event "*** Titled Tuesday Blitz"]
[Site "Chess.com"]
[Date "2020.05.05"]
[Round "8"]
[White "VNeimer"]
[Black "Gareth-Bale11"]
[Result "0-1"]
[WhiteElo "2553"]
[BlackElo "2735"]
[TimeControl "180+1"]
[EndTime "11:34:59 PDT"]
[Termination "Gareth-Bale11 won by resignation"]

1. e4 {[%clk 0:03:00.9]} 1... c5 {[%clk 0:02:56.9]} 2. Nc3 {[%clk 0:03:00.9]}
2... Nc6 {[%clk 0:02:53]} 3. g3 {[%clk 0:03:00.9]} 3... g6 {[%clk 0:02:49.8]} 4.
Bg2 {[%clk 0:03:01.8]} 4... Bg7 {[%clk 0:02:46.3]} 5. d3 {[%clk 0:03:02.7]} 5...
d6 {[%clk 0:02:43.5]} 6. f4 {[%clk 0:03:02.6]} 6... e6 {[%clk 0:02:42]} 7. Nf3
{[%clk 0:03:02.5]} 7... Nge7 {[%clk 0:02:41.9]} 8. O-O {[%clk 0:03:03]} 8... O-O
{[%clk 0:02:40.8]} 9. Be3 {[%clk 0:03:03.5]} 9... Nd4 {[%clk 0:02:40.8]} 10. e5
{[%clk 0:03:03.4]} 10... Nef5 {[%clk 0:02:40.1]} 11. Bf2 {[%clk 0:03:03.2]}
11... Nxf3+ {[%clk 0:02:36]} 12. Qxf3 {[%clk 0:03:04.1]} 12... Nd4 {[%clk
0:02:36.8]} 13. Qd1 {[%clk 0:03:04.2]} 13... dxe5 {[%clk 0:02:36.5]} 14. fxe5
{[%clk 0:03:05.1]} 14... Bxe5 {[%clk 0:02:36.1]} 15. Ne4 {[%clk 0:03:05.4]}
15... Qc7 {[%clk 0:02:20.7]} 16. c3 {[%clk 0:03:02.8]} 16... Nc6 {[%clk
0:02:20.9]} 17. Bxc5 {[%clk 0:02:59.2]} 17... Rd8 {[%clk 0:02:20.5]} 18. Qf3
{[%clk 0:02:43.5]} 18... f5 {[%clk 0:02:17.9]} 19. Ng5 {[%clk 0:02:35.5]} 19...
Bf6 {[%clk 0:02:15.1]} 20. Qe3 {[%clk 0:02:22]} 20... Ne5 {[%clk 0:02:10.3]} 21.
d4 {[%clk 0:02:20.5]} 21... Nc4 {[%clk 0:02:00.9]} 22. Qc1 {[%clk 0:01:58]}
22... e5 {[%clk 0:01:45.8]} 23. b3 {[%clk 0:01:43.7]} 23... Nd6 {[%clk
0:01:39.9]} 24. Qe3 {[%clk 0:01:22]} 24... exd4 {[%clk 0:01:34.3]} 25. cxd4
{[%clk 0:01:22.9]} 25... Re8 {[%clk 0:01:31.2]} 26. Bxd6 {[%clk 0:01:14.6]}
26... Rxe3 {[%clk 0:01:29.8]} 27. Bxc7 {[%clk 0:01:10.6]} 27... Bxg5 {[%clk
0:01:30.2]} 28. Rfe1 {[%clk 0:01:03.8]} 28... a5 {[%clk 0:01:25.6]} 29. Kf2
{[%clk 0:01:02.2]} 29... Rc3 {[%clk 0:01:24]} 30. Bd5+ {[%clk 0:00:48.4]} 30...
Kg7 {[%clk 0:01:21.4]} 31. Be5+ {[%clk 0:00:46.7]} 31... Kf8 {[%clk 0:01:21.3]}
32. h4 {[%clk 0:00:44.4]} 32... Be7 {[%clk 0:01:19.2]} 33. Bg7+ {[%clk
0:00:38.5]} 33... Ke8 {[%clk 0:01:11.8]} 34. Bf6 {[%clk 0:00:35.3]} 34... Rc7
{[%clk 0:01:11.8]} 35. Rac1 {[%clk 0:00:35.1]} 35... Rxc1 {[%clk 0:01:06.7]} 36.
Rxe7+ {[%clk 0:00:34.9]} 36... Kf8 {[%clk 0:01:06.8]} 37. Rf7+ {[%clk
0:00:34.9]} 37... Ke8 {[%clk 0:01:06.7]} 38. Rxh7 {[%clk 0:00:24.6]} 38... Rc2+
{[%clk 0:01:06.2]} 39. Kf3 {[%clk 0:00:23.3]} 39... Ra6 {[%clk 0:01:01.1]} 40.
Be5 {[%clk 0:00:17.3]} 40... Be6 {[%clk 0:00:59.2]} 41. Bxb7 {[%clk 0:00:15.7]}
41... Rb6 {[%clk 0:00:59.5]} 42. d5 {[%clk 0:00:15.8]} 42... Rxb7 {[%clk
0:00:56.5]} 43. Rh8+ {[%clk 0:00:16]} 43... Kd7 {[%clk 0:00:55.8]} 44. dxe6+
{[%clk 0:00:16.9]} 44... Kxe6 {[%clk 0:00:55.9]} 45. Rg8 {[%clk 0:00:16.6]}
45... Kxe5 {[%clk 0:00:55.6]} 0-1

[Event "*** Titled Tuesday Blitz"]
[Site "Chess.com"]
[Date "2020.05.05"]
[Round "8"]
[White "elsemenova"]
[Black "Aradej"]
[Result "0-1"]
[WhiteElo "2405"]
[BlackElo "2548"]
[TimeControl "180+1"]
[EndTime "11:34:59 PDT"]
[Termination "Aradej won by resignation"]

1. e4 {[%clk 0:03:00.9]} 1... d6 {[%clk 0:03:00]} 2. d4 {[%clk 0:03:00.4]} 2...
Nf6 {[%clk 0:03:00.8]} 3. Nc3 {[%clk 0:03:00.8]} 3... e5 {[%clk 0:03:01.2]} 4.
dxe5 {[%clk 0:03:00.3]} 4... dxe5 {[%clk 0:03:00.7]} 5. Qxd8+ {[%clk 0:03:01.2]}
5... Kxd8 {[%clk 0:03:00.9]} 6. g3 {[%clk 0:03:02.1]} 6... Bc5 {[%clk
0:02:56.8]} 7. Bg5 {[%clk 0:03:01.3]} 7... Nd7 {[%clk 0:02:55.1]} 8. f4 {[%clk
0:02:49.8]} 8... c6 {[%clk 0:02:47.1]} 9. Nf3 {[%clk 0:02:38.2]} 9... h6 {[%clk
0:02:42.1]} 10. Bxf6+ {[%clk 0:02:27]} 10... gxf6 {[%clk 0:02:42]} 11. f5 {[%clk
0:02:20.3]} 11... Ke7 {[%clk 0:02:40.5]} 12. O-O-O {[%clk 0:02:19.4]} 12... b5
{[%clk 0:02:36.3]} 13. Be2 {[%clk 0:02:07.1]} 13... Nb6 {[%clk 0:02:30.8]} 14.
b3 {[%clk 0:01:35.5]} 14... a5 {[%clk 0:02:30.5]} 15. Kb2 {[%clk 0:01:30.3]}
15... a4 {[%clk 0:02:29.8]} 16. h4 {[%clk 0:01:19.1]} 16... Bd7 {[%clk
0:02:24.6]} 17. g4 {[%clk 0:01:12.6]} 17... Rhg8 {[%clk 0:02:11.4]} 18. Nb1
{[%clk 0:01:03.5]} 18... Ra7 {[%clk 0:02:03.8]} 19. Ne1 {[%clk 0:00:55.1]} 19...
b4 {[%clk 0:01:46.9]} 20. Nd3 {[%clk 0:00:49.2]} 20... Bd4+ {[%clk 0:01:46.8]}
21. Kc1 {[%clk 0:00:47.3]} 21... c5 {[%clk 0:01:45.8]} 22. Nd2 {[%clk
0:00:41.2]} 22... axb3 {[%clk 0:01:44]} 23. Nxb3 {[%clk 0:00:39.3]} 23... c4
{[%clk 0:01:10.7]} 24. Nxd4 {[%clk 0:00:35.4]} 24... cxd3 {[%clk 0:01:10.3]} 25.
Rxd3 {[%clk 0:00:33]} 25... exd4 {[%clk 0:01:09.8]} 26. Rxd4 {[%clk 0:00:33.9]}
26... Rxa2 {[%clk 0:01:09.4]} 27. Kd2 {[%clk 0:00:24.1]} 27... Rc8 {[%clk
0:01:07.9]} 28. Bd3 {[%clk 0:00:22.9]} 28... b3 {[%clk 0:01:07.1]} 29. Rc1
{[%clk 0:00:19]} 29... Na4 {[%clk 0:01:01.4]} 30. Rb4 {[%clk 0:00:13.8]} 30...
b2 {[%clk 0:00:57.3]} 31. Re1 {[%clk 0:00:11]} 31... Nc3 {[%clk 0:00:56.1]} 32.
e5 {[%clk 0:00:11.1]} 32... fxe5 {[%clk 0:00:55.1]} 33. Rc4 {[%clk 0:00:08.3]}
33... b1=Q {[%clk 0:00:52.4]} 0-1

[Event "*** Titled Tuesday Blitz"]
[Site "Chess.com"]
[Date "2020.05.05"]
[Round "8"]
[White "Marty435"]
[Black "Love_craft"]
[Result "0-1"]
[WhiteElo "2510"]
[BlackElo "2417"]
[TimeControl "180+1"]
[EndTime "11:34:59 PDT"]
[Termination "Love_craft won by checkmate"]

1. Nf3 {[%clk 0:03:00.9]} 1... g6 {[%clk 0:03:00.3]} 2. c4 {[%clk 0:02:59.7]}
2... Bg7 {[%clk 0:03:01.2]} 3. Nc3 {[%clk 0:03:00.5]} 3... d6 {[%clk 0:03:01.5]}
4. d4 {[%clk 0:03:00.7]} 4... Nd7 {[%clk 0:03:01.7]} 5. e4 {[%clk 0:03:00.6]}
5... Ngf6 {[%clk 0:03:01.7]} 6. Be2 {[%clk 0:02:59.6]} 6... O-O {[%clk
0:03:01.9]} 7. O-O {[%clk 0:02:59.6]} 7... e5 {[%clk 0:03:02.8]} 8. Be3 {[%clk
0:02:51.1]} 8... c6 {[%clk 0:03:01.2]} 9. d5 {[%clk 0:02:45.6]} 9... c5 {[%clk
0:03:01.2]} 10. a3 {[%clk 0:02:42]} 10... Ne8 {[%clk 0:02:59.9]} 11. b4 {[%clk
0:02:41.8]} 11... b6 {[%clk 0:03:00.2]} 12. Nd2 {[%clk 0:02:40.1]} 12... f5
{[%clk 0:02:59.6]} 13. f3 {[%clk 0:02:39.1]} 13... f4 {[%clk 0:02:59.9]} 14. Bf2
{[%clk 0:02:39]} 14... g5 {[%clk 0:02:59.6]} 15. Nb3 {[%clk 0:02:32.5]} 15...
Rf7 {[%clk 0:02:58.3]} 16. Qd2 {[%clk 0:02:25]} 16... Bf8 {[%clk 0:02:57.2]} 17.
Rfb1 {[%clk 0:02:25.1]} 17... h5 {[%clk 0:02:56.6]} 18. bxc5 {[%clk 0:02:17.7]}
18... bxc5 {[%clk 0:02:51.9]} 19. Na4 {[%clk 0:02:06.4]} 19... Rg7 {[%clk
0:02:48.4]} 20. Na5 {[%clk 0:02:03.1]} 20... g4 {[%clk 0:02:48.7]} 21. Nc6
{[%clk 0:02:02.8]} 21... Qg5 {[%clk 0:02:48.7]} 22. Be1 {[%clk 0:01:43.8]} 22...
Ndf6 {[%clk 0:02:32.6]} 23. Rb3 {[%clk 0:01:11.2]} 23... h4 {[%clk 0:02:19]} 24.
Rab1 {[%clk 0:01:01.4]} 24... h3 {[%clk 0:02:15.7]} 25. Rb8 {[%clk 0:01:00]}
25... Rxb8 {[%clk 0:01:32.5]} 26. Rxb8 {[%clk 0:01:00.9]} 26... Bd7 {[%clk
0:01:32.4]} 27. Nc3 {[%clk 0:00:44.8]} 27... hxg2 {[%clk 0:01:24.1]} 28. Nb5
{[%clk 0:00:42.3]} 28... a6 {[%clk 0:01:17.6]} 29. Nba7 {[%clk 0:00:35]} 29...
g3 {[%clk 0:01:03.2]} 30. hxg3 {[%clk 0:00:23.2]} 30... Qh5 {[%clk 0:00:58.9]}
31. Kxg2 {[%clk 0:00:15.4]} 31... fxg3 {[%clk 0:00:50.9]} 32. Bd3 {[%clk
0:00:03.9]} 32... Qh2+ {[%clk 0:00:47.3]} 33. Kf1 {[%clk 0:00:04.1]} 33... Bh3+
{[%clk 0:00:43.7]} 34. Qg2 {[%clk 0:00:02.8]} 34... Qxg2# {[%clk 0:00:43.5]} 0-1

[Event "*** Titled Tuesday Blitz"]
[Site "Chess.com"]
[Date "2020.05.05"]
[Round "8"]
[White "kasparicy"]
[Black "awesomevishesh"]
[Result "0-1"]
[WhiteElo "2311"]
[BlackElo "2476"]
[TimeControl "180+1"]
[EndTime "11:35:05 PDT"]
[Termination "awesomevishesh won on time"]

1. e4 {[%clk 0:03:00.9]} 1... c5 {[%clk 0:02:59.7]} 2. Nf3 {[%clk 0:02:57.3]}
2... d6 {[%clk 0:02:58]} 3. d4 {[%clk 0:02:55.6]} 3... cxd4 {[%clk 0:02:57.8]}
4. Nxd4 {[%clk 0:02:56.5]} 4... Nf6 {[%clk 0:02:57.7]} 5. Nc3 {[%clk 0:02:55.8]}
5... a6 {[%clk 0:02:57.4]} 6. Qf3 {[%clk 0:02:54.6]} 6... g6 {[%clk 0:02:42.4]}
7. h3 {[%clk 0:02:51.9]} 7... Bg7 {[%clk 0:02:42.3]} 8. Be3 {[%clk 0:02:49.7]}
8... O-O {[%clk 0:02:41.7]} 9. O-O-O {[%clk 0:02:46.5]} 9... Qc7 {[%clk
0:02:36.7]} 10. g4 {[%clk 0:02:31.1]} 10... Nc6 {[%clk 0:02:34.7]} 11. Kb1
{[%clk 0:02:16.1]} 11... Ne5 {[%clk 0:02:25.2]} 12. Qg2 {[%clk 0:02:14]} 12...
b5 {[%clk 0:02:12.5]} 13. f4 {[%clk 0:02:05]} 13... Nc4 {[%clk 0:02:11.4]} 14.
Bxc4 {[%clk 0:01:57.2]} 14... bxc4 {[%clk 0:02:07]} 15. g5 {[%clk 0:01:58.1]}
15... Nh5 {[%clk 0:02:01.9]} 16. Nd5 {[%clk 0:01:55.8]} 16... Qb7 {[%clk
0:01:54.1]} 17. c3 {[%clk 0:01:48.3]} 17... e6 {[%clk 0:01:29.8]} 18. Nf6+
{[%clk 0:01:35.4]} 18... Nxf6 {[%clk 0:01:29.1]} 19. gxf6 {[%clk 0:01:36.3]}
19... Bxf6 {[%clk 0:01:29.6]} 20. h4 {[%clk 0:01:32.4]} 20... e5 {[%clk
0:01:25.7]} 21. fxe5 {[%clk 0:01:23.4]} 21... dxe5 {[%clk 0:01:25.1]} 22. Nc2
{[%clk 0:01:13.6]} 22... Bf5 {[%clk 0:01:17.1]} 23. Rhf1 {[%clk 0:01:00.1]}
23... Bxe4 {[%clk 0:01:15.3]} 24. Qh2 {[%clk 0:00:51.1]} 24... Rab8 {[%clk
0:01:14.1]} 25. Bc1 {[%clk 0:00:49.6]} 25... Bg7 {[%clk 0:01:08.7]} 26. Ka1
{[%clk 0:00:48]} 26... Bd3 {[%clk 0:01:06.9]} 27. Rh1 {[%clk 0:00:37.1]} 27...
h5 {[%clk 0:01:01.4]} 28. Nb4 {[%clk 0:00:30.3]} 28... Be4 {[%clk 0:00:59.6]}
29. Rhe1 {[%clk 0:00:15.9]} 29... a5 {[%clk 0:00:59.2]} 30. Nc2 {[%clk
0:00:16.4]} 30... Rfd8 {[%clk 0:00:58.5]} 31. Rxd8+ {[%clk 0:00:12.3]} 31...
Rxd8 {[%clk 0:00:58.1]} 32. Na3 {[%clk 0:00:11.7]} 32... Qd5 {[%clk 0:00:53.1]}
33. Qg1 {[%clk 0:00:06.8]} 33... Bf8 {[%clk 0:00:48]} 34. Nb1 {[%clk 0:00:04.2]}
34... Qd3 {[%clk 0:00:42]} 0-1

[Event "*** Titled Tuesday Blitz"]
[Site "Chess.com"]
[Date "2020.05.05"]
[Round "8"]
[White "Vusatiuk_Vladimir"]
[Black "yoolund"]
[Result "0-1"]
[WhiteElo "2337"]
[BlackElo "2556"]
[TimeControl "180+1"]
[EndTime "11:35:05 PDT"]
[Termination "yoolund won by resignation"]

1. e4 {[%clk 0:02:51.1]} 1... b6 {[%clk 0:02:58.1]} 2. d4 {[%clk 0:02:50.5]}
2... Bb7 {[%clk 0:02:57.9]} 3. Nc3 {[%clk 0:02:51.1]} 3... e6 {[%clk 0:02:57.6]}
4. Bd3 {[%clk 0:02:32.4]} 4... Nf6 {[%clk 0:02:56]} 5. Nge2 {[%clk 0:02:28.4]}
5... d5 {[%clk 0:02:55.2]} 6. e5 {[%clk 0:02:27.9]} 6... Ne4 {[%clk 0:02:54.9]}
7. f3 {[%clk 0:02:21.6]} 7... Nxc3 {[%clk 0:02:52.8]} 8. bxc3 {[%clk 0:02:19.8]}
8... Ba6 {[%clk 0:02:51]} 9. O-O {[%clk 0:02:19.1]} 9... Bxd3 {[%clk 0:02:49.9]}
10. cxd3 {[%clk 0:02:20]} 10... c5 {[%clk 0:02:49.7]} 11. a4 {[%clk 0:02:15.9]}
11... Nc6 {[%clk 0:02:49]} 12. dxc5 {[%clk 0:02:08.5]} 12... bxc5 {[%clk
0:02:46.6]} 13. f4 {[%clk 0:02:05.9]} 13... Be7 {[%clk 0:02:45.3]} 14. Be3
{[%clk 0:01:59.4]} 14... O-O {[%clk 0:02:42.8]} 15. d4 {[%clk 0:01:53.5]} 15...
f5 {[%clk 0:02:35.5]} 16. dxc5 {[%clk 0:01:51.4]} 16... Qa5 {[%clk 0:02:33.8]}
17. Qd3 {[%clk 0:01:45.3]} 17... Bxc5 {[%clk 0:02:31.8]} 18. Rfc1 {[%clk
0:01:11.6]} 18... Rab8 {[%clk 0:02:28.4]} 19. Nd4 {[%clk 0:01:04.9]} 19... Nxd4
{[%clk 0:02:19.8]} 20. Bxd4 {[%clk 0:01:05.8]} 20... Rfc8 {[%clk 0:02:16.8]} 21.
c4 {[%clk 0:01:03.6]} 21... Bxd4+ {[%clk 0:02:11]} 22. Qxd4 {[%clk 0:01:03.3]}
22... Rb4 {[%clk 0:02:10.7]} 23. Qd2 {[%clk 0:00:57.9]} 23... Qc5+ {[%clk
0:02:04.3]} 24. Kh1 {[%clk 0:00:53.4]} 24... Rxc4 {[%clk 0:01:58.8]} 25. Rxc4
{[%clk 0:00:52.4]} 25... Qxc4 {[%clk 0:01:58.3]} 26. a5 {[%clk 0:00:50.7]} 26...
a6 {[%clk 0:01:53.7]} 27. h3 {[%clk 0:00:49.3]} 27... h6 {[%clk 0:01:52.1]} 28.
Rb1 {[%clk 0:00:48.7]} 28... Rc7 {[%clk 0:01:49.1]} 29. Rb8+ {[%clk 0:00:41.7]}
29... Kh7 {[%clk 0:01:48.4]} 30. Kh2 {[%clk 0:00:40.9]} 30... Qe4 {[%clk
0:01:44.2]} 31. Rb2 {[%clk 0:00:24.9]} 31... g5 {[%clk 0:01:36]} 32. fxg5 {[%clk
0:00:22.9]} 32... Qxe5+ {[%clk 0:01:34.5]} 33. g3 {[%clk 0:00:23.4]} 33... hxg5
{[%clk 0:01:33.3]} 34. Rb8 {[%clk 0:00:17.8]} 34... Rc3 {[%clk 0:01:28.6]} 35.
Rb7+ {[%clk 0:00:05.3]} 35... Kh6 {[%clk 0:01:28]} 36. Qf2 {[%clk 0:00:05]}
36... Re3 {[%clk 0:01:25]} 37. Rb2 {[%clk 0:00:05.2]} 37... Rxg3 {[%clk
0:01:24.3]} 38. Qxg3 {[%clk 0:00:04.6]} 38... Qxb2+ {[%clk 0:01:23.5]} 39. Kh1
{[%clk 0:00:05.5]} 39... Qc1+ {[%clk 0:01:18.6]} 40. Kg2 {[%clk 0:00:06]} 40...
Qd2+ {[%clk 0:01:18.2]} 41. Kh1 {[%clk 0:00:06.3]} 41... Qd1+ {[%clk 0:01:16.1]}
42. Kg2 {[%clk 0:00:06.6]} 42... Qe2+ {[%clk 0:01:15.8]} 43. Kh1 {[%clk
0:00:06.9]} 43... f4 {[%clk 0:01:10.4]} 44. Qg1 {[%clk 0:00:04.9]} 44... Qf3+
{[%clk 0:01:08]} 45. Kh2 {[%clk 0:00:05.3]} 45... Qg3+ {[%clk 0:01:07.4]} 46.
Qxg3 {[%clk 0:00:05.9]} 46... fxg3+ {[%clk 0:01:08.3]} 0-1